bitfinex-derivatives/quotes_BTCF0:USTF0_20210708
["timestamp","ask_amount","ask_price","bid_price","bid_amount"]
[1625712372015,1.76528999,33283.0,33282.0,5.9876485]
[1625712372466,0.70611937,33283.0,33282.0,5.9876485]
[1625712372916,0.70611937,33283.0,33282.0,6.22822394]
[1625712374119,1.76541932,33283.0,33282.0,6.22822394]
[1625712374793,0.70611937,33283.0,33282.0,6.22822394]
[1625712375543,1.76548254,33283.0,33282.0,6.22822394]
[1625712378096,3.00150252,33283.0,33282.0,4.64325816]
[1625712391539,3.05850252,33283.0,33282.0,4.64325816]
[1625712392594,3.58830593,33283.0,33282.0,5.17267928]
[1625712395747,3.53130593,33283.0,33282.0,5.17267928]
[1625712395896,3.53130593,33283.0,33282.0,5.50286928]
[1625712396047,2.29528595,33283.0,33282.0,7.09014176]
[1625712398308,2.29528595,33283.0,33282.0,5.50286928]
[1625712399052,3.53124856,33283.0,33282.0,5.50286928]
[1625712400631,2.29528595,33283.0,33282.0,5.50286928]
[1625712401683,3.53131042,33283.0,33282.0,5.50286928]
[1625712403111,2.29528595,33283.0,33282.0,7.09181604]
[1625712411142,3.52822648,33283.0,33282.0,7.09181604]
[1625712411441,2.29528595,33283.0,33282.0,7.09181604]
[1625712411593,3.52838458,33283.0,33282.0,7.09181604]
[1625712412795,3.82042458,33283.0,33282.0,5.17267928]
[1625712413099,3.87742458,33283.0,33282.0,6.76188779]
[1625712413849,3.58538458,33283.0,33282.0,6.76188779]
[1625712414000,2.35228595,33283.0,33282.0,6.76188779]
[1625712418806,3.58667282,33283.0,33282.0,6.76188779]
[1625712420619,3.58667282,33283.0,33282.0,5.17267928]
[1625712421060,4.99692013,33283.0,33282.0,5.17267928]
[1625712423387,4.99692013,33283.0,33282.0,9.85307928]
[1625712426242,4.99692013,33283.0,33282.0,5.17267928]
[1625712428267,4.99692013,33283.0,33282.0,8.90437928]
[1625712436376,4.99692013,33283.0,33282.0,8.99447928]
[1625712436527,4.99692013,33283.0,33282.0,8.90437928]
[1625712443212,4.93992013,33283.0,33282.0,8.90437928]
[1625712443363,4.93992013,33283.0,33282.0,9.12828928]
[1625712443663,3.52967282,33283.0,33282.0,10.73062494]
[1625712443813,2.29528595,33283.0,33282.0,10.73062494]
[1625712445465,0.08848319,33283.0,33282.0,12.49506031]
[1625712445615,0.08843925,33284.0,33282.0,12.49506031]
[1625712445764,0.08843925,33284.0,33283.0,0.01240542]
[1625712445915,0.08843925,33284.0,33283.0,6.53730223]
[1625712447717,0.35322741,33285.0,33283.0,6.53730223]
[1625712447718,0.44163917,33285.0,33283.0,6.53730223]
[1625712447868,0.35322741,33285.0,33284.0,6.54172975]
[1625712448018,0.35322741,33285.0,33284.0,6.78230519]
[1625712448169,0.88271481,33285.0,33284.0,6.78230519]
[1625712448617,0.35322741,33285.0,33284.0,6.78230519]
[1625712448993,1.58876066,33286.0,33284.0,6.78230519]
[1625712449144,0.08827534,33285.0,33284.0,6.76989571]
[1625712449295,0.08827534,33285.0,33284.0,0.25298894]
[1625712449520,0.08827534,33285.0,33284.0,6.78082234]
[1625712450496,0.44045281,33285.0,33284.0,6.78082234]
[1625712450646,0.35217747,33285.0,33284.0,6.78082234]
[1625712450947,1.28836484,33285.0,33284.0,6.87032234]
[1625712451097,1.28836484,33285.0,33284.0,6.76840884]
[1625712451399,2.34327929,33285.0,33284.0,6.76840884]
[1625712452299,2.34327929,33285.0,33284.0,5.18055748]
[1625712454025,2.34327929,33285.0,33284.0,9.34845748]
[1625712456126,3.57268509,33285.0,33284.0,9.34845748]
[1625712456427,7.74168509,33285.0,33284.0,9.34845748]
[1625712457103,6.51227929,33285.0,33284.0,9.34845748]
[1625712457555,7.74213568,33285.0,33284.0,9.34845748]
[1625712457704,6.51227929,33285.0,33284.0,9.34845748]
[1625712459281,7.74242013,33285.0,33284.0,9.34845748]
[1625712460187,6.51227929,33285.0,33284.0,9.34845748]
[1625712460633,7.74157076,33285.0,33284.0,9.34845748]
[1625712461609,6.51227929,33285.0,33284.0,9.34845748]
[1625712462584,6.78713929,33285.0,33284.0,9.34845748]
[1625712464235,6.78713929,33285.0,33284.0,4.40847544]
[1625712464387,6.78713929,33285.0,33284.0,9.34802021]
[1625712464535,6.51227929,33285.0,33284.0,9.34802021]
[1625712467840,6.45527929,33285.0,33284.0,9.34802021]
[1625712468290,5.40036484,33285.0,33284.0,9.34802021]
[1625712468516,5.40036484,33285.0,33284.0,10.93553429]
[1625712469643,1.23136484,33285.0,33284.0,10.93553429]
[1625712469794,0.52775291,33285.0,33284.0,10.93553429]
[1625712471522,0.87932629,33285.0,33284.0,10.93553429]
[1625712472197,0.87932629,33285.0,33284.0,10.9479391]
[1625712472344,0.52747717,33285.0,33284.0,10.9479391]
[1625712472569,0.61551587,33285.0,33284.0,10.9479391]
[1625712475726,0.26394249,33285.0,33284.0,10.9479391]
[1625712476250,0.0880387,33285.0,33284.0,10.9479391]
[1625712476476,0.6160739,33286.0,33284.0,10.9479391]
[1625712476628,0.6160739,33286.0,33285.0,0.0124002]
[1625712476776,0.26418265,33286.0,33285.0,6.53534743]
[1625712477101,0.08812355,33286.0,33285.0,6.53534743]
[1625712477243,0.001,33288.0,33285.0,6.53534743]
[1625712477394,0.001,33288.0,33286.0,0.0123974]
[1625712477533,0.001,33288.0,33287.0,6.52235993]
[1625712477678,0.001,33288.0,33287.0,6.53475664]
[1625712478201,0.001,33288.0,33287.0,7.01590752]
[1625712478503,0.001,33288.0,33287.0,7.10460752]
[1625712478890,0.001,33288.0,33287.0,8.8663291]
[1625712484131,0.001,33288.0,33287.0,7.10460752]
[1625712485031,0.001,33288.0,33287.0,7.01590752]
[1625712486987,0.001,33288.0,33287.0,7.10660752]
[1625712487136,0.001,33288.0,33287.0,7.44656752]
[1625712487436,0.9535,33291.0,33287.0,7.44656752]
[1625712487437,0.9545,33291.0,33287.0,7.44656752]
[1625712487736,0.9545,33291.0,33288.0,0.01236871]
[1625712487887,0.9545,33291.0,33290.0,4.92473288]
[1625712488188,0.9545,33291.0,33290.0,5.16530832]
[1625712491042,0.9545,33291.0,33290.0,9.73260832]
[1625712496375,0.9535,33291.0,33290.0,9.73260832]
[1625712496525,1.0105,33291.0,33290.0,9.73260832]
[1625712499228,0.9535,33291.0,33290.0,9.73260832]
[1625712499825,0.61648525,33293.0,33290.0,9.73260832]
[1625712499976,0.08816809,33292.0,33290.0,9.94798832]
[1625712500127,1.23325323,33294.0,33291.0,6.49002176]
[1625712500128,0.001,33294.0,33291.0,6.49002176]
[1625712500275,0.001,33294.0,33293.0,0.48115088]
[1625712500426,0.001,33294.0,33293.0,6.95721305]
[1625712500725,0.001,33294.0,33293.0,5.38195468]
[1625712501626,0.001,33294.0,33293.0,5.39425414]
[1625712501779,0.001,33294.0,33293.0,6.96873811]
[1625712505229,0.001,33294.0,33293.0,7.46873811]
[1625712505907,0.002,33299.0,33293.0,9.21386089]
[1625712506059,0.002,33299.0,33294.0,0.01226762]
[1625712506206,0.002,33299.0,33298.0,5.36806021]
[1625712506358,0.002,33299.0,33298.0,5.71617021]
[1625712506659,0.002,33299.0,33298.0,7.28695585]
[1625712506884,0.002,33299.0,33298.0,5.71617021]
[1625712508381,1.0003,33301.0,33298.0,5.71617021]
[1625712508756,1.0573,33301.0,33300.0,4.88503074]
[1625712510256,1.0573,33301.0,33300.0,3.72988311]
[1625712510782,1.0573,33301.0,33300.0,5.12540162]
[1625712511234,1.0573,33301.0,33300.0,3.72988311]
[1625712526554,1.0573,33301.0,33300.0,5.12186519]
[1625712527683,1.36622,33301.0,33300.0,5.12186519]
[1625712527832,1.36622,33301.0,33300.0,3.72988311]
[1625712529708,1.63023805,33301.0,33300.0,3.72988311]
[1625712530006,2.24547633,33301.0,33300.0,2.50862542]
[1625712530156,2.59709955,33301.0,33300.0,2.50862542]
[1625712531658,2.24560087,33301.0,33300.0,2.50862542]
[1625712531808,1.58517788,33301.0,33300.0,3.9964756]
[1625712532108,1.0573,33301.0,33300.0,3.9964756]
[1625712532408,1.0573,33301.0,33300.0,5.38991293]
[1625712532558,1.0003,33301.0,33300.0,5.38991293]
[1625712533458,1.0003,33301.0,33300.0,6.95651795]
[1625712533759,1.0003,33301.0,33300.0,6.96874882]
[1625712534358,0.9291,33304.0,33300.0,6.96874882]
[1625712534508,0.06911593,33308.0,33300.0,7.46874882]
[1625712534658,0.002,33309.0,33303.0,6.42560058]
[1625712534809,0.002,33309.0,33304.0,1.51218625]
[1625712534961,0.002,33309.0,33308.0,6.41687653]
[1625712535110,0.003,33314.0,33308.0,6.65507653]
[1625712535261,0.003,33314.0,33308.0,6.66725416]
[1625712535410,0.9396,33317.0,33313.0,4.8530352]
[1625712535712,0.9396,33317.0,33316.0,3.46634508]
[1625712535862,0.002,33317.0,33316.0,3.73902508]
[1625712536462,0.002,33317.0,33316.0,4.70132684]
[1625712537888,0.002,33317.0,33316.0,3.48810606]
[1625712538037,0.002,33317.0,33316.0,3.21542606]
[1625712538789,0.35339052,33317.0,33316.0,2.17552254]
[1625712538939,0.41039052,33317.0,33316.0,2.17552254]
[1625712539089,0.93740147,33317.0,33316.0,2.17552254]
[1625712539691,0.58601095,33317.0,33316.0,2.17552254]
[1625712539993,2.34259191,33317.0,33316.0,0.96230176]
[1625712540666,3.57192675,33317.0,33316.0,0.96230176]
[1625712541118,4.97688353,33317.0,33316.0,0.96230176]
[1625712541267,5.23852353,33317.0,33316.0,0.96230176]
[1625712545247,3.83356675,33317.0,33316.0,0.96230176]
[1625712545546,2.60423191,33317.0,33316.0,0.96230176]
[1625712546456,2.34259191,33317.0,33316.0,0.96230176]
[1625712546605,1.28867846,33317.0,33316.0,0.96230176]
[1625712547047,0.58601095,33317.0,33316.0,1.30864742]
[1625712547347,0.52901095,33317.0,33316.0,1.30864742]
[1625712547498,0.52901095,33317.0,33316.0,1.65628742]
[1625712547650,0.002,33317.0,33316.0,2.52143828]
[1625712547950,0.35323848,33317.0,33316.0,1.82915455]
[1625712548100,0.059,33317.0,33316.0,2.52155766]
[1625712548249,0.057,33317.0,33316.0,2.52155766]
[1625712548551,0.057,33317.0,33316.0,3.55959038]
[1625712549000,0.9933,33318.0,33316.0,3.55959038]
[1625712549298,0.9933,33318.0,33317.0,1.21098084]
[1625712549599,1.0503,33318.0,33317.0,1.21098084]
[1625712550049,1.40150704,33318.0,33317.0,0.51899179]
[1625712550649,1.40150704,33318.0,33317.0,0.86505525]
[1625712551250,1.0503,33318.0,33317.0,0.86505525]
[1625712551403,1.40142989,33318.0,33317.0,0.86505525]
[1625712551851,1.0503,33318.0,33317.0,0.86505525]
[1625712552152,1.40147766,33318.0,33317.0,0.86505525]
[1625712552603,1.40147766,33318.0,33317.0,0.34606346]
[1625712553354,1.0503,33318.0,33317.0,0.86509651]
[1625712553505,1.0503,33318.0,33317.0,1.21076936]
[1625712553957,1.0503,33318.0,33317.0,2.24859611]
[1625712554631,1.0503,33318.0,33317.0,1.21076936]
[1625712555006,1.0503,33318.0,33317.0,0.51903305]
[1625712555906,1.0503,33318.0,33317.0,1.2108751]
[1625712556957,0.9933,33318.0,33317.0,1.2108751]
[1625712557408,0.9933,33318.0,33317.0,3.45723467]
[1625712558007,0.9933,33318.0,33317.0,4.83951739]
[1625712560485,0.9933,33318.0,33317.0,3.45723467]
[1625712560711,0.9933,33318.0,33317.0,4.83968921]
[1625712562437,0.9933,33318.0,33317.0,3.45723467]
[1625712564014,0.9933,33318.0,33317.0,4.83807389]
[1625712570850,0.9203,33318.0,33317.0,4.83807389]
[1625712571001,0.001,33321.0,33317.0,4.83807389]
[1625712571150,0.002,33326.0,33317.0,4.83807389]
[1625712571451,0.002,33326.0,33325.0,1.20857642]
[1625712571601,0.002,33326.0,33325.0,1.46333642]
[1625712571751,0.002,33326.0,33325.0,2.49904266]
[1625712572500,0.002,33326.0,33325.0,3.70599051]
[1625712572650,0.002,33326.0,33325.0,4.42771683]
[1625712573851,0.002,33326.0,33325.0,5.80671866]
[1625712574601,0.002,33326.0,33325.0,4.42771683]
[1625712575277,0.001,33329.0,33325.0,4.42771683]
[1625712575577,0.001,33329.0,33328.0,2.23941926]
[1625712576777,0.001,33329.0,33328.0,2.4799947]
[1625712579480,0.001,33329.0,33328.0,3.68404243]
[1625712579856,0.001,33329.0,33328.0,2.4799947]
[1625712585039,0.001,33329.0,33328.0,3.68459754]
[1625712589388,0.9767,33331.0,33328.0,3.68459754]
[1625712589839,0.9767,33331.0,33330.0,2.2430913]
[1625712589990,0.001,33332.0,33330.0,1.20781839]
[1625712590290,0.001,33332.0,33331.0,1.20884519]
[1625712590740,0.001,33332.0,33331.0,1.68999607]
[1625712591491,0.001,33332.0,33331.0,2.7260322]
[1625712595246,0.001,33335.0,33331.0,2.7260322]
[1625712595697,0.001,33335.0,33334.0,0.34575183]
[1625712596673,0.001,33335.0,33333.0,0.8644472]
[1625712596827,0.001,33335.0,33334.0,0.24057544]
[1625712598402,0.001,33335.0,33334.0,0.58599607]
[1625712599977,0.001,33335.0,33334.0,1.1039968]
[1625712600879,0.001,33335.0,33334.0,0.58599607]
[1625712601181,0.001,33335.0,33334.0,1.10360823]
[1625712602757,0.001,33335.0,33334.0,0.7581876]
[1625712603209,0.27677,33335.0,33334.0,0.7581876]
[1625712603357,0.68472727,33335.0,33334.0,0.58582316]
[1625712603657,1.56192868,33335.0,33334.0,0.24057544]
[1625712603806,6.48122868,33335.0,33334.0,0.24057544]
[1625712603965,7.53393046,33335.0,33334.0,0.24057544]
[1625712605683,8.76263913,33335.0,33334.0,0.24057544]
[1625712607111,8.76263913,33335.0,33331.0,0.82705669]
[1625712607409,2.28297594,33332.0,33331.0,0.48215088]
[1625712607559,2.33997594,33332.0,33331.0,0.48215088]
[1625712608031,3.56930785,33332.0,33331.0,0.48215088]
[1625712608385,4.9745338,33332.0,33331.0,0.48215088]
[1625712608540,4.9745338,33332.0,33331.0,5.088e-05]
[1625712608912,5.21510924,33332.0,33331.0,5.088e-05]
[1625712610040,3.80988329,33332.0,33331.0,5.088e-05]
[1625712610639,5.21552307,33332.0,33331.0,5.088e-05]
[1625712617997,5.21552307,33332.0,33331.0,4.79795088]
[1625712619047,5.21552307,33332.0,33331.0,5.14408363]
[1625712620850,5.21552307,33332.0,33331.0,0.34618363]
[1625712623181,5.21552307,33332.0,33331.0,5.088e-05]
[1625712624081,5.21552307,33332.0,33331.0,0.34619077]
[1625712624682,5.21552307,33332.0,33331.0,5.18036197]
[1625712625360,5.21552307,33332.0,33331.0,4.48829849]
[1625712625586,5.21552307,33332.0,33331.0,5.18030788]
[1625712625587,3.80988329,33332.0,33331.0,5.18030788]
[1625712625810,5.2179808,33332.0,33331.0,5.18030788]
[1625712628140,5.2179808,33332.0,33331.0,4.48829849]
[1625712628365,5.2179808,33332.0,33331.0,5.18075443]
[1625712630471,5.2179808,33332.0,33331.0,6.21856435]
[1625712631443,5.2179808,33332.0,33331.0,5.18075443]
[1625712632495,5.2179808,33332.0,33331.0,4.83412739]
[1625712632643,5.2179808,33332.0,33331.0,4.48829849]
[1625712632869,5.2179808,33332.0,33331.0,4.83415091]
[1625712633545,5.2179808,33332.0,33331.0,4.3151033]
[1625712634821,5.2179808,33332.0,33331.0,3.96925088]
[1625712635119,5.2179808,33332.0,33331.0,4.31513411]
[1625712635345,5.2179808,33332.0,33331.0,3.96925088]
[1625712636094,5.2179808,33332.0,33331.0,4.31512586]
[1625712636397,5.2179808,33332.0,33331.0,3.96925088]
[1625712637451,5.2179808,33332.0,33331.0,4.31508272]
[1625712637976,6.8028215,33332.0,33331.0,3.96925088]
[1625712638350,5.2179808,33332.0,33331.0,3.96925088]
[1625712638952,6.80278103,33332.0,33331.0,3.96925088]
[1625712639551,5.2179808,33332.0,33331.0,3.96925088]
[1625712639931,6.80274994,33332.0,33331.0,3.96925088]
[1625712641133,5.2179808,33332.0,33331.0,3.96925088]
[1625712641806,6.80270277,33332.0,33331.0,3.96925088]
[1625712642106,6.80270277,33332.0,33330.0,0.31215244]
[1625712642407,4.93062279,33331.0,33327.0,0.80071743]
[1625712642559,2.64133357,33328.0,33324.0,1.21130644]
[1625712642711,0.057,33327.0,33324.0,1.21130644]
[1625712642860,2.6414936,33325.0,33323.0,0.002]
[1625712643008,0.057,33324.0,33323.0,0.002]
[1625712643162,3.17967977,33324.0,33323.0,0.002]
[1625712644736,4.76404051,33324.0,33323.0,0.002]
[1625712645184,5.00461595,33324.0,33323.0,0.002]
[1625712645490,3.42025521,33324.0,33323.0,0.002]
[1625712645634,0.77872632,33324.0,33323.0,0.002]
[1625712645935,0.72172632,33324.0,33323.0,1.21298664]
[1625712646236,0.72172632,33324.0,33323.0,1.21098664]
[1625712646536,0.72172632,33324.0,33323.0,2.59431736]
[1625712646685,0.72172632,33324.0,33323.0,6.40631736]
[1625712647137,0.72172632,33324.0,33323.0,6.6468928]
[1625712647736,0.72172632,33324.0,33323.0,6.65902766]
[1625712648564,0.72172632,33324.0,33323.0,8.21418984]
[1625712650519,0.72172632,33324.0,33323.0,8.48452984]
[1625712656523,0.72172632,33324.0,33323.0,8.21418984]
[1625712662907,1.00824632,33324.0,33323.0,8.21418984]
[1625712668462,0.72172632,33324.0,33323.0,8.21418984]
[1625712672518,0.72172632,33324.0,33323.0,9.250837]
[1625712683040,0.77872632,33324.0,33323.0,9.250837]
[1625712683193,1.83653841,33324.0,33323.0,7.68353996]
[1625712684244,3.07060784,33324.0,33323.0,7.68353996]
[1625712690777,3.07060784,33324.0,33323.0,6.30020924]
[1625712692355,4.48057063,33324.0,33323.0,6.30020924]
[1625712693256,4.48057063,33324.0,33323.0,2.48820924]
[1625712693406,4.48057063,33324.0,33323.0,2.2476338]
[1625712693557,4.48057063,33324.0,33323.0,1.03664716]
[1625712693708,4.48057063,33324.0,33322.0,1.07645484]
[1625712694006,3.9161,33323.0,33322.0,1.07645484]
[1625712694156,3.9731,33323.0,33322.0,1.07645484]
[1625712694758,3.9731,33323.0,33320.0,1.38717779]
[1625712694759,5.38291471,33323.0,33320.0,1.38717779]
[1625712695215,3.9731,33323.0,33320.0,1.38717779]
[1625712695658,5.3827143,33323.0,33320.0,0.001]
[1625712695958,1.40964356,33322.0,33320.0,0.001]
[1625712696107,0.057,33321.0,33320.0,0.001]
[1625712697234,0.057,33321.0,33319.0,0.001]
[1625712697384,0.24057544,33320.0,33319.0,0.001]
[1625712697533,0.62184544,33320.0,33319.0,0.001]
[1625712699636,2.03077543,33320.0,33319.0,0.001]
[1625712700690,3.61592419,33320.0,33319.0,0.001]
[1625712701739,3.61592419,33320.0,33309.0,1.39219211]
[1625712701891,4.5531,33315.0,33309.0,0.89189211]
[1625712702039,4.5531,33315.0,33295.0,0.24057544]
[1625712702040,1.58454297,33313.0,33301.0,1.80662517]
[1625712702189,0.057,33312.0,33301.0,1.80662517]
[1625712702342,0.057,33312.0,33301.0,0.24057544]
[1625712702490,0.057,33312.0,33307.0,0.69640247]
[1625712702491,1.6414935,33312.0,33307.0,0.69640247]
[1625712702793,4.54222388,33308.0,33307.0,0.69640247]
[1625712703015,4.59922388,33308.0,33306.0,0.69569205]
[1625712703165,0.70354538,33307.0,33306.0,0.69569205]
[1625712703390,0.76054538,33307.0,33306.0,0.69569205]
[1625712703540,1.4822717,33307.0,33306.0,0.69569205]
[1625712704515,1.4822717,33307.0,33305.0,0.69643656]
[1625712704816,0.70363663,33306.0,33305.0,0.69643656]
[1625712704970,0.97102663,33306.0,33305.0,0.69643656]
[1625712705117,0.97102663,33306.0,33303.0,0.004]
[1625712705118,0.97102663,33306.0,33304.0,0.69568976]
[1625712705571,0.24057544,33305.0,33304.0,0.69568976]
[1625712705720,0.29757544,33305.0,33304.0,0.69568976]
[1625712705872,5.45187544,33305.0,33304.0,0.69568976]
[1625712706845,5.45187544,33305.0,33303.0,0.69517866]
[1625712708873,5.45187544,33305.0,33302.0,0.69624005]
[1625712709024,5.45187544,33305.0,33302.0,0.001]
[1625712709550,0.24057544,33303.0,33302.0,0.001]
[1625712709702,0.29757544,33303.0,33302.0,0.001]
[1625712710529,0.29757544,33303.0,33302.0,0.69572047]
[1625712710977,0.29757544,33303.0,33302.0,0.001]
[1625712713379,0.29757544,33303.0,33302.0,5.0103]
[1625712714284,0.29757544,33303.0,33302.0,5.70367827]
[1625712714583,0.29757544,33303.0,33302.0,5.0103]
[1625712715335,0.29757544,33303.0,33302.0,5.0093]
[1625712716384,0.52172544,33303.0,33302.0,5.0093]
[1625712719464,0.52172544,33303.0,33299.0,0.6931451]
[1625712719615,0.24057544,33300.0,33299.0,0.6931451]
[1625712719773,0.29757544,33300.0,33299.0,0.6931451]
[1625712720219,4.55607544,33300.0,33299.0,0.6931451]
[1625712720892,4.55607544,33300.0,33298.0,0.69412347]
[1625712721193,4.55607544,33300.0,33298.0,0.001]
[1625712721584,0.24057544,33299.0,33298.0,0.001]
[1625712721741,0.29757544,33299.0,33298.0,0.001]
[1625712727422,0.29757544,33299.0,33294.0,0.69447734]
[1625712727574,0.29757544,33299.0,33295.0,0.6941263]
[1625712728704,0.29757544,33299.0,33296.0,0.69499213]
[1625712729377,0.24057544,33299.0,33296.0,0.91512213]
[1625712729678,0.24057544,33297.0,33296.0,0.22013]
[1625712729827,0.24057544,33297.0,33296.0,1.9565642]
[1625712730127,0.24057544,33297.0,33296.0,3.17168027]
[1625712732458,0.24057544,33297.0,33296.0,3.69234007]
[1625712734936,0.24057544,33297.0,33296.0,5.08154417]
[1625712737793,0.24057544,33297.0,33296.0,3.69234007]
[1625712738241,0.24057544,33297.0,33296.0,5.08232431]
[1625712741847,0.24057544,33297.0,33296.0,5.09456825]
[1625712743723,0.001,33299.0,33296.0,5.57571913]
[1625712743873,0.001,33299.0,33296.0,7.14088117]
[1625712744024,0.001,33299.0,33298.0,6.42898929]
[1625712744173,0.002,33304.0,33298.0,6.44120869]
[1625712744325,0.002,33304.0,33299.0,0.0122108]
[1625712744476,0.002,33304.0,33303.0,6.42398662]
[1625712744626,0.002,33304.0,33303.0,5.03080402]
[1625712744780,0.002,33304.0,33303.0,5.04300513]
[1625712744930,0.24357544,33309.0,33303.0,5.04300513]
[1625712744931,0.24357544,33309.0,33303.0,8.51052334]
[1625712745077,0.24357544,33309.0,33304.0,0.01218441]
[1625712745378,0.002,33305.0,33304.0,1.74507106]
[1625712745527,0.002,33305.0,33304.0,8.15578534]
[1625712745678,0.002,33305.0,33304.0,8.87751166]
[1625712748305,1.14477544,33312.0,33304.0,8.87751166]
[1625712748455,1.14477544,33312.0,33305.0,0.01220138]
[1625712748756,1.14477544,33312.0,33311.0,4.85858865]
[1625712748906,0.24157544,33312.0,33311.0,4.85858865]
[1625712749806,0.24157544,33312.0,33311.0,5.33973953]
[1625712753412,0.24157544,33312.0,33311.0,5.35197859]
[1625712754465,0.24157544,33312.0,33311.0,6.91873738]
[1625712755592,0.24157544,33312.0,33311.0,2.06014873]
[1625712755742,0.24157544,33312.0,33311.0,6.93481489]
[1625712757320,0.24057544,33312.0,33311.0,6.93481489]
[1625712757619,0.24057544,33312.0,33311.0,5.3680561]
[1625712759423,0.24057544,33312.0,33311.0,6.9306459]
[1625712759574,0.24057544,33312.0,33311.0,5.6527761]
[1625712759878,0.24057544,33312.0,33311.0,7.21505928]
[1625712760324,0.24057544,33312.0,33311.0,5.6527761]
[1625712760624,0.24057544,33312.0,33311.0,5.3680561]
[1625712760924,0.24057544,33312.0,33311.0,5.35581704]
[1625712761375,0.24057544,33312.0,33311.0,5.36802316]
[1625712763856,0.24057544,33312.0,33311.0,5.35581704]
[1625712764005,0.24057544,33312.0,33311.0,5.36801196]
[1625712764305,0.24057544,33312.0,33311.0,5.35581704]
[1625712766183,0.29757544,33312.0,33311.0,5.35581704]
[1625712766335,0.24057544,33312.0,33311.0,3.96305528]
[1625712769416,0.29757544,33312.0,33311.0,3.96305528]
[1625712769715,0.29757544,33312.0,33311.0,2.74438874]
[1625712770765,0.29757544,33312.0,33311.0,3.96067575]
[1625712773474,0.24057544,33312.0,33311.0,3.96067575]
[1625712773625,0.24057544,33312.0,33311.0,5.35007821]
[1625712775577,0.29757544,33312.0,33311.0,5.35007821]
[1625712775876,0.29757544,33312.0,33311.0,3.96067575]
[1625712776027,0.55810544,33312.0,33311.0,3.96067575]
[1625712776401,4.66280544,33312.0,33311.0,3.96067575]
[1625712778055,4.66280544,33312.0,33311.0,2.74438874]
[1625712780532,4.66280544,33312.0,33311.0,1.69981742]
[1625712782783,4.75074746,33312.0,33311.0,1.69981742]
[1625712783085,5.01405282,33312.0,33311.0,0.87078236]
[1625712783388,5.01405282,33312.0,33310.0,0.08718386]
[1625712783389,6.94539119,33312.0,33310.0,0.08718386]
[1625712783535,2.28322598,33311.0,33309.0,0.08722962]
[1625712783684,0.057,33310.0,33309.0,0.08722962]
[1625712783835,2.34041643,33310.0,33309.0,0.08722962]
[1625712783986,2.82156731,33310.0,33309.0,0.08722962]
[1625712784286,2.82156731,33310.0,33308.0,0.08828387]
[1625712784587,2.28349325,33309.0,33308.0,0.08828387]
[1625712784736,2.34049325,33309.0,33308.0,0.08828387]
[1625712784962,6.99929325,33309.0,33308.0,0.08828387]
[1625712787288,6.99929325,33309.0,33308.0,0.08728387]
[1625712789691,6.99929325,33309.0,33308.0,0.43719869]
[1625712789991,6.99929325,33309.0,33308.0,0.34991482]
[1625712790141,6.99929325,33309.0,33308.0,0.87530774]
[1625712790818,6.99929325,33309.0,33308.0,0.34991482]
[1625712791645,8.22966221,33309.0,33308.0,0.08760997]
[1625712791944,8.22966221,33309.0,33308.0,0.43802205]
[1625712791945,6.99929325,33309.0,33308.0,0.43802205]
[1625712792320,6.99929325,33309.0,33308.0,0.35041208]
[1625712793072,6.99929325,33309.0,33308.0,0.87587153]
[1625712793373,8.22964536,33309.0,33308.0,0.08760427]
[1625712794273,6.99929325,33309.0,33308.0,0.35033834]
[1625712796601,6.99929325,33309.0,33308.0,0.43791464]
[1625712796980,8.22979498,33309.0,33308.0,0.0875763]
[1625712797206,6.99929325,33309.0,33308.0,0.43779929]
[1625712797580,8.22988472,33309.0,33308.0,0.35022299]
[1625712797728,6.99929325,33309.0,33308.0,0.87542449]
[1625712798858,6.99929325,33309.0,33308.0,0.5252015]
[1625712799832,5.94544083,33309.0,33308.0,1.22556554]
[1625712800057,5.94544083,33309.0,33308.0,2.27584925]
[1625712800357,5.24281401,33309.0,33308.0,2.27584925]
[1625712801334,5.59451146,33309.0,33308.0,2.27584925]
[1625712801481,5.24281401,33309.0,33308.0,2.27584925]
[1625712801783,5.59454398,33309.0,33308.0,2.27584925]
[1625712801931,5.24281401,33309.0,33308.0,2.27584925]
[1625712802382,5.54693401,33309.0,33308.0,2.27584925]
[1625712802681,6.25024612,33309.0,33308.0,2.27584925]
[1625712803509,5.01992,33309.0,33305.0,0.001]
[1625712803811,1.0551029,33308.0,33307.0,0.70071702]
[1625712803960,2.34320233,33308.0,33307.0,1.22627241]
[1625712806138,2.34320233,33308.0,33307.0,0.52555539]
[1625712806439,2.34320233,33308.0,33307.0,0.87661837]
[1625712806890,3.57406058,33308.0,33307.0,0.87661837]
[1625712807113,3.57406058,33308.0,33307.0,0.35106298]
[1625712807639,2.34320233,33308.0,33307.0,0.52655677]
[1625712808090,2.34320233,33308.0,33307.0,0.87763557]
[1625712808314,2.34320233,33308.0,33307.0,0.52655677]
[1625712808615,2.34320233,33308.0,33307.0,1.2289017]
[1625712809141,2.34320233,33308.0,33307.0,2.28205217]
[1625712809293,1.28809943,33308.0,33307.0,2.28205217]
[1625712809592,2.34305164,33308.0,33307.0,1.2289017]
[1625712812221,2.34305164,33308.0,33307.0,2.28235426]
[1625712812520,1.28809943,33308.0,33307.0,2.28235426]
[1625712812821,2.34298453,33308.0,33307.0,1.2289017]
[1625712816201,3.57386756,33308.0,33307.0,0.87797779]
[1625712817628,3.57386756,33308.0,33307.0,0.52655677]
[1625712817929,3.57386756,33308.0,33307.0,0.87788135]
[1625712818679,2.34276813,33308.0,33307.0,0.35132458]
[1625712818832,0.76047418,33308.0,33307.0,1.75559603]
[1625712818982,1.28812268,33308.0,33307.0,2.28235136]
[1625712819434,1.23112268,33308.0,33307.0,2.28235136]
[1625712819739,0.56924737,33310.0,33307.0,4.91254893]
[1625712820035,0.48115088,33310.0,33309.0,5.149291]
[1625712820937,0.48115088,33310.0,33309.0,5.16160485]
[1625712821837,0.48115088,33310.0,33309.0,6.73841021]
[1625712830252,0.24057544,33310.0,33309.0,6.73841021]
[1625712834686,0.24057544,33310.0,33309.0,6.74275961]
[1625712834985,0.24057544,33310.0,33309.0,6.75159205]
[1625712839565,0.08916239,33313.0,33309.0,6.75159205]
[1625712839715,0.001,33313.0,33310.0,0.01231356]
[1625712839866,0.001,33313.0,33312.0,6.47991031]
[1625712840015,0.001,33313.0,33312.0,6.4922127]
[1625712840316,0.001,33313.0,33312.0,6.97336358]
[1625712841819,0.001,33313.0,33312.0,8.72365231]
[1625712842267,0.24257544,33318.0,33312.0,8.72365231]
[1625712842567,0.24257544,33318.0,33317.0,6.47890144]
[1625712842717,0.24257544,33318.0,33317.0,6.74402467]
[1625712844221,0.24257544,33318.0,33317.0,6.98460011]
[1625712847297,0.24057544,33318.0,33317.0,6.98460011]
[1625712850004,0.001,33321.0,33317.0,6.98460011]